Cogmind - Beta 15 @@@ ROGUE MODE // 2025.08.19 @ 20:31:37 Player: beans Result: Destroyed by S-10 Pest with Light Assault Rifle Performance ------------- Evolutions (2) 1000 Regions Visited (4) 800 Robots Destroyed (44) 220 Value Destroyed (1157) 1157 Prototype IDs (3) 60 Alien Tech Used (0) 0 Bonus (0) 0 TOTAL SCORE: 3237 Bonus ------- None Cogmind --------- Core Integrity 0/550 Matter 300/300 Energy 82/100 System Corruption 0% Temperature Cool (0) Movement Hovering (60) Location -8/Materials Parts ------- > --- POWER (1) -------- (None) > --- PROPULSION (2) --- Airjet > --- UTILITY (4) ------ (None) > --- WEAPON (4) ------- (None) > --- INVENTORY (5) ---- Faulty Improved Flight Unit Plasma Cutter Flail Peak State ------------ > --- POWER ------------ Micro Nuclear Core > --- PROPULSION ------- Aluminum Leg Carbon-fiber Leg > --- UTILITY ---------- Kinecellerator > --- WEAPON ----------- Assault Cannon Assault Cannon Assault Cannon > --- INVENTORY -------- (None) [Rating: 21] Favorites ----------- Power Light Ion Engine Engine Light Ion Engine Power Core Micro Nuclear Core Propulsion Aluminum Leg Leg Aluminum Leg Hover Unit Airjet Flight Unit Improved Flight Unit Utility Reflective Plating Device Kinecellerator Processor Improved Targeting Computer Protection Reflective Plating Weapon Assault Rifle Energy Gun Improved Medium Laser Energy Cannon Ion Cannon Ballistic Gun Assault Rifle Ballistic Cannon Assault Cannon Launcher Rocket Launcher Special Weapon Plasma Cutter Impact Weapon Flail Build | -11 -10 -9 -9 -8 ------- Run | Yrd Mat Mat Min Mat Slots Evolved 4 | . . 2 . 2 Power . | . . . . . Propulsion . | . . . . . Utility 2 | . . . . 2 Weapon 2 | . . 2 . . Parts Attached 24 | 5 . 1 1 17 Power 3 | 1 . . . 2 Engine 2 | 1 . . . 1 Core 1 | . . . . 1 Reactor . | . . . . . Propulsion 6 | 2 . . . 4 Treads . | . . . . . Leg 4 | 2 . . . 2 Wheel . | . . . . . Hover 1 | . . . . 1 Flight 1 | . . . . 1 Utility 3 | . . 1 . 2 Device 1 | . . . . 1 Storage . | . . . . . Processor 1 | . . 1 . . Hackware . | . . . . . Protection 1 | . . . . 1 Artifact . | . . . . . Weapon 12 | 2 . . 1 9 Energy Gun 1 | . . . . 1 Energy Cannon 1 | . . . . 1 Ballistic Gun 4 | 2 . . 1 1 Ballistic Cannon 3 | . . . . 3 Launcher 1 | . . . . 1 Special Weapon 1 | . . . . 1 Impact Weapon 1 | . . . . 1 Slashing Weapon . | . . . . . Piercing Weapon . | . . . . . Special Melee Weapon . | . . . . . Unidentified Prototypes 3 | . . . . 3 Parts Lost 18 | . . 3 . 15 Power 2 | . . . . 2 Propulsion 3 | . . 1 . 2 Utility 3 | . . 1 . 2 Weapon 10 | . . 1 . 9 Highest Loss Streak 5 | . . 2 . 5 To Critical Strikes . | . . . . . Average Backups . | . . . . . Power . | . . . . . Propulsion . | . . . . . Utility . | . . . . . Weapon . | . . . . . Tool/Special . | . . . . . Unused Backups . | . . . . . Power . | . . . . . Propulsion . | . . . . . Utility . | . . . . . Weapon . | . . . . . Tool/Special . | . . . . . Average Slot Usage (%) 39 | . 71 49 41 32 Engine 5 | . 14 11 11 1 Core 2 | . . . . 4 Leg 9 | . 28 16 11 4 Protection 1 | . . . . 1 Ballistic Gun 11 | . 28 21 19 5 Ballistic Cannon 5 | . . . . 7 Launcher 1 | . . . . 2 Peak Build Rating 21 | 5 5 7 4 21 Average Rating 7 | 3 5 4 3 9 On Entrance 3 | . 5 5 3 4 Naked Turns . | . . . . . Heaviest Build 25 | 7 7 7 6 25 Greatest Support 25 | 20 20 20 10 25 Greatest Overweight (x) 5 | 2 . . . 5 Average Overweight (x) . | . . . . 1 Largest Inventory Capacity 5 | 5 5 5 5 5 Average Capacity 5 | 5 5 5 5 5 Most Carried 3 | 2 . 1 1 3 Average Carried . | . . . . . Final Capacity 5 | 5 5 5 5 5 Final Carried 3 | . . . . 3 Class Distribution -------------------- 81% | Mutant 18% | Gunner Dominant Class ---------------- Mutant | -10/Materials Mutant | -9/Materials Mutant | -9/Mines Mutant | -8/Materials Resources | -11 -10 -9 -9 -8 ----------- Run | Yrd Mat Mat Min Mat Matter Collected 1163 | 196 162 43 36 726 Remotely . | . . . . . Salvage Created 1207 | 64 237 143 . 763 Parts 90 | 4 16 18 . 52 Haulers Intercepted 3 | . . . . 3 Recyclers Shooed 3 | 1 1 . . 1 Parts Field Recycled . | . . . . . Retrieved Matter . | . . . . . Parts Self-Destructed . | . . . . . Prevented . | . . . . . Kills | -11 -10 -9 -9 -8 ------- Run | Yrd Mat Mat Min Mat Combat Hostiles Destroyed 31 | . 7 5 . 19 Guns 16 | . 7 5 . 4 Cannons 10 | . . . . 10 AOE 5 | . . . . 5 Classes Destroyed 11 | 1 3 1 . 6 Worker 3 | . . 1 . 2 Builder 3 | . . . . 3 Tunneler 1 | . . . . 1 Hauler 3 | . . . . 3 Recycler 1 | 1 . . . . Operator 1 | . 1 . . . Watcher 1 | . . . . 1 Swarmer 9 | . 3 3 . 3 Grunt 18 | . 4 2 . 12 Brawler 2 | . . . . 2 Sentry 2 | . . . . 2 Best Kill Streak 6 | 1 4 6 . 5 Combat Bots Only 5 | . 4 5 . 5 Max Kills in Single Turn 2 | 1 1 2 . 2 Gunslinging 1 | . . 1 . . Exploded 2 | . . . . 2 Melee . | . . . . . Uniques/NPCs Destroyed . | . . . . . Combat | -11 -10 -9 -9 -8 -------- Run | Yrd Mat Mat Min Mat Hostile Shots Fired 305 | . 16 59 . 230 Missed 119 | . 5 18 . 96 Hits 186 | . 11 41 . 134 Projectile 186 | . 11 41 . 134 Critical Strikes 7 | . . 1 . 6 Damage Taken 2525 | . 116 444 . 1965 Core 711 | . 35 119 . 557 Absorbed by Shields . | . . . . . Ignored by Resistances 36 | . . . . 36 Core Remaining (%) 85 | 100 86 . 70 . Volleys Fired 104 | 2 16 14 3 69 Largest 3 | 2 2 2 2 3 Hottest 134 | 40 40 40 40 134 Shots Fired 202 | 4 32 28 6 132 Gun 94 | 4 32 28 6 24 Cannon 92 | . . . . 92 Launcher 12 | . . . . 12 Special 4 | . . . . 4 Kinetic 164 | 4 32 28 6 94 Thermal 26 | . . . . 26 Explosive 12 | . . . . 12 Electromagnetic . | . . . . . Robot Hit Streak 12 | 1 7 10 4 12 Robot Miss Streak 6 | 1 3 4 5 6 Penetration Max . | . . . . . Secondary Targets 1 | . . 1 . . Max Gunslinging Chain 1 | . . 1 . . Shots Hit Robots 116 | 2 17 16 4 77 Core Hits 76 | 2 14 8 1 51 Critical Kills . | . . . . . Critical Parts Destroyed . | . . . . . Critical Strikes 5 | . . . . 5 Burn 1 | . . . . 1 Blast 4 | . . . . 4 Melee Attacks 3 | . . . . 3 Impact 3 | . . . . 3 Slashing . | . . . . . Piercing . | . . . . . Sneak Attacks . | . . . . . Combat Hostiles . | . . . . . Follow-up Attacks . | . . . . . Damage Inflicted 2903 | 25 233 212 53 2380 Guns 760 | 25 233 212 53 237 Cannons 1304 | . . . . 1304 Explosions 723 | . . . . 723 Melee 71 | . . . . 71 Ramming . | . . . . . Kinetic 1769 | 25 233 212 53 1246 Thermal 340 | . . . . 340 Explosive 723 | . . . . 723 Electromagnetic . | . . . . . Impact 71 | . . . . 71 Slashing . | . . . . . Piercing . | . . . . . Highest Corruption . | . . . . . Average Corruption . | . . . . . Corruption Purged . | . . . . . Corruption Blocked . | . . . . . Overload Shots . | . . . . . Overflow Damage 50 | . . . . 50 Projectiles 21 | . . . . 21 Explosions . | . . . . . Melee 29 | . . . . 29 Knockbacks 10 | . . . . 10 Impact . | . . . . . Kinetic 9 | . . . . 9 Secondary 1 | . . . . 1 Self-Inflicted Damage 55 | . . . . 55 Shots 3 | . . . . 3 Rammed . | . . . . . Targets Rammed . | . . . . . Kicked . | . . . . . Crushed . | . . . . . Highest Temperature 345 | . 2 5 . 345 Average Temperature 92 | . 2 5 . 94 Received Heat Transfer 1305 | . 42 147 . 1116 Effects 1 | . . . . 1 Interference 1 | . . . . 1 Siege Activations . | . . . . . Martial Activations . | . . . . . Shielding Activations . | . . . . . Robots Disrupted . | . . . . . Combat Hostiles . | . . . . . Robots Corrupted 1 | . . . . 1 Combat Hostiles . | . . . . . Parts Fried 1 | . . . . 1 Impact Corruptions 1 | . . . . 1 Robots Melted . | . . . . . Combat Hostiles . | . . . . . Parts Melted 1 | . . . . 1 Heat Transferred 777 | . . . . 777 Parts Sabotaged . | . . . . . Parts Stolen . | . . . . . Parts Stripped . | . . . . . Power Chain Reactions . | . . . . . Alert | -11 -10 -9 -9 -8 ------- Run | Yrd Mat Mat Min Mat Maximum Alert Level 1 | . . . . 1 Low Security (%) 67 | 100 100 100 100 47 Level 1 32 | . . . . 52 Level 2 . | . . . . . Level 3 . | . . . . . Level 4 . | . . . . . Level 5 . | . . . . . High Security . | . . . . . Max Security . | . . . . . Peak Influence 332 | 5 140 115 28 332 Initial 50 | . . 50 28 . Average 121 | 1 61 69 6 169 Influence Increases 1090 | 5 175 125 . 785 Destroy 0b10 Robot/C 620 | . 140 100 . 380 Destroy 0b10 Robot/NC 65 | 5 5 5 . 50 Destroy Leader 138 | . 30 20 . 88 Disable Machine 45 | . . . . 45 Destroy Structure 87 | . . . . 87 Lose Combat Pursuer 135 | . . . . 135 Influence Decreases 758 | 5 55 170 75 453 Entered New Map 117 | . . 70 47 . Time Decay 481 | 5 55 70 28 323 Lost Part 160 | . . 30 . 130 Squads Dispatched 6 | . 1 1 . 4 Investigation 1 | . . . . 1 Extermination . | . . . . . Reinforcement 4 | . 1 1 . 2 Assault . | . . . . . Garrison 1 | . . . . 1 Intercept . | . . . . . Searches Triggered . | . . . . . Construction Impeded . | . . . . . Haulers Reinforced . | . . . . . Active Scanning Responses . | . . . . . Cargo Convoy Interrupts . | . . . . . Stealth | -11 -10 -9 -9 -8 --------- Run | Yrd Mat Mat Min Mat Distress Signals 4 | . 1 . . 3 Communications Jammed . | . . . . . Distress Signals . | . . . . . Times Spotted 63 | . 9 11 . 43 Peak Tracking Total 9 | . 4 9 . 9 Tactical Retreats 7 | . . . . 7 Traps | -11 -10 -9 -9 -8 ------- Run | Yrd Mat Mat Min Mat Traps Triggered 1 | . . . . 1 Indirectly . | . . . . . Trap Hack Attempts . | . . . . . Triggered . | . . . . . Disarmed . | . . . . . Reprogrammed . | . . . . . Reused . | . . . . . Traps Extracted . | . . . . . Installed . | . . . . . Triggered . | . . . . . Machines | -11 -10 -9 -9 -8 ---------- Run | Yrd Mat Mat Min Mat Machines Disabled 3 | . . . . 3 Max in Single Turn 1 | . . . . 1 Machines Repaired . | . . . . . Machines Dismantled 1 | . . . . 1 Machines Sabotaged . | . . . . . Overloaded Fab Kills . | . . . . . Hacking | -11 -10 -9 -9 -8 --------- Run | Yrd Mat Mat Min Mat Machines Accessed . | . . . . . Terminals . | . . . . . Fabricators . | . . . . . Repair Stations . | . . . . . Recycling Units . | . . . . . Scanalyzers . | . . . . . Garrison Access . | . . . . . Total Hacks . | . . . . . Successful . | . . . . . Failed . | . . . . . Catastrophic . | . . . . . Database Lockouts . | . . . . . Manual . | . . . . . Terminals . | . . . . . Fabricators . | . . . . . Repair Stations . | . . . . . Recycling Units . | . . . . . Scanalyzers . | . . . . . Garrison Access . | . . . . . Terminal Hacks . | . . . . . Fabricator Hacks . | . . . . . Repair Station Hacks . | . . . . . Recycling Unit Hacks . | . . . . . Scanalyzer . | . . . . . Garrison Access Hacks . | . . . . . Unauthorized Hacks . | . . . . . Terminals . | . . . . . Fabricators . | . . . . . Repair Stations . | . . . . . Recycling Units . | . . . . . Scanalyzers . | . . . . . Garrison Access . | . . . . . Data Cores Recovered 1 | . 1 . . . Used . | . . . . . Hacking Detections . | . . . . . Full Trace Events . | . . . . . Feedback Events . | . . . . . Feedback Blocked . | . . . . . Robot Schematics Acquired . | . . . . . Robots Built . | . . . . . Authchips . | . . . . . Time . | . . . . . Total Robot Build Rating . | . . . . . Part Schematics Acquired . | . . . . . Parts Built . | . . . . . Authchips . | . . . . . Time . | . . . . . Total Part Build Rating . | . . . . . Parts Repaired . | . . . . . Time . | . . . . . Parts Recycled . | . . . . . Recycled Matter . | . . . . . Retrieved Matter . | . . . . . Retrieved Components . | . . . . . Parts Scanalyzed . | . . . . . Part Schematics Acquired . | . . . . . Parts Damaged . | . . . . . Bothacking | -11 -10 -9 -9 -8 ------------ Run | Yrd Mat Mat Min Mat Used RIF Installer . | . . . . . Robots Hacked . | . . . . . Non-combat . | . . . . . Combat . | . . . . . Robot Hacks Applied . | . . . . . Relay Couplers Released . | . . . . . Fabnet Peak Effective % . | . . . . . Robots Rewired . | . . . . . Allies Hacked . | . . . . . Hacks Repelled . | . . . . . Allies | -11 -10 -9 -9 -8 -------- Run | Yrd Mat Mat Min Mat Total Allies . | . . . . . Largest Group . | . . . . . Highest-Rated Group . | . . . . . Highest-Rated Ally . | . . . . . Total Orders . | . . . . . Ally Attacks . | . . . . . Total Damage . | . . . . . Kills . | . . . . . Allies Corrupted . | . . . . . Allies Melted . | . . . . . Intel | -11 -10 -9 -9 -8 ------- Run | Yrd Mat Mat Min Mat Active Infowar (turns) . | . . . . . Robot Analysis Total . | . . . . . Derelict Logs Recovered . | . . . . . Drone Launches . | . . . . . Drone Recoveries . | . . . . . Exploration | -11 -10 -9 -9 -8 ------------- Run | Yrd Mat Mat Min Mat Turns Passed 1350 | 47 144 140 164 855 Spaces Moved 719 | 30 81 81 129 398 Core 141 | 13 . . . 128 Treads . | . . . . . Legs 487 | 17 81 81 129 179 Wheels . | . . . . . Hover 91 | . . . . 91 Flight . | . . . . . Fastest Speed 50 | 50 120 120 120 60 Average Speed 134 | 106 120 120 120 147 Slowest Speed 300 | 150 120 120 120 300 Overloaded Moves . | . . . . . Propulsion Burnouts . | . . . . . Robots Hopped . | . . . . . Potential Cave-ins 2 | . . . . 2 Cave-ins Triggered . | . . . . . Exploration Rate (%) 25 | 3 20 14 38 53 Regions Visited 4 Branch Regions 1 Pre-discovered Areas 1 | . . . 1 . Known Exits Taken . | . . . . . Unknown Exits Taken 4 | 1 1 1 1 . Scrap Searched 1 | . . . 1 . Spaces Dug 28 | . . . . 28 Terrain Destroyed 106 | . . . . 106 Melee . | . . . . . Projectile 24 | . . . . 24 AOE 82 | . . . . 82 Terrain Rammed . | . . . . . Walls Destroyed . | . . . . . Machines Disabled . | . . . . . Actions | -11 -10 -9 -9 -8 --------- Run | Yrd Mat Mat Min Mat Total 904 | 41 96 96 133 538 Wait 15 | . . . . 15 Move 715 | 29 80 80 128 398 Hop . | . . . . . Pick Up 24 | 5 . 1 1 17 Fast Attach . | . . . . . Attach 28 | 5 . 1 1 21 Detach 7 | . . . . 7 Swap . | . . . . . Drop 2 | . . . . 2 Fire 104 | 2 16 14 3 69 Melee 3 | . . . . 3 Ram . | . . . . . Kick . | . . . . . Crush . | . . . . . Escape Stasis . | . . . . . Rewire . | . . . . . Trap . | . . . . . Miscellaneous 6 | . . . . 6 Route ------- -11/Scrapyard -10/Materials -9/Materials -9/Mines -8/Materials History --------- Turn | Location | Event 14 | -11/Scrapyard | Discovered new exit (range 16) 48 | -11/Scrapyard | Entered Materials 183 | -10/Materials | Discovered new exit (range 5) 192 | -10/Materials | Entered another Materials area 192 | -9/Materials | Evolved 2 slots: Weapon x2 303 | -9/Materials | Discovered new exit (range 16) 307 | -9/Materials | Build established: Mutant 332 | -9/Materials | Entered Mines 390 | -9/Mines | Learned location of Storage (-8) 488 | -9/Mines | Discovered new exit (range 7) 496 | -9/Mines | Entered Materials 496 | -8/Materials | Evolved 2 slots: Utility x2 660 | -8/Materials | Lost 5 parts (1p1n3w) 891 | -8/Materials | Core integrity fell below 50% 956 | -8/Materials | Lost 5 parts (1n1u3w) 1107 | -8/Materials | Core integrity fell below 20% 1251 | -8/Materials | Lost 3 parts (1p2w) 1341 | -8/Materials | Garrison activated, responded to threat 1351 | -8/Materials | Destroyed by S-10 Pest with Light Assault Rifle Last Messages --------------- Acquired 15 matter. K-01 Serf collects debris. Acquired Prototype Energy Gun. Identified Imp. Medium Laser. S-10 Pest destroyed. Acquired 10 matter. S-10 Pest destroyed. C-30 ARC bursts open, deploying its payload. G-47 Trooper unfolds itself. K-01 Serf collects debris. K-01 Serf cleans the Pressure Siphon. S-10 Pest suffers critical hit (Burn). S-10 Pest calls for garrison reinforcements. ALERT: Activating Garrison Access M001. K-01 Serf cleans the Pressure Siphon. Destroyed Lgt. Ion Engine. S-10 Pest heat short circuits Flight Unit. Flight Unit melted. S-10 Pest destroyed. Imp. Medium Laser destroyed. Map ----- +----------------------------------------------------+ | ?????????????????????????????????????????????????? | | ?????????????????????????????????????????????????? | | ?????????????????????????????????????????????????? | | ?????????????????????????????????????????????????? | | ?????????????????????????????????????????????????? | | ?????????????????????????????????????????????????? | | ?????????????????????????????????????????????????? | | ?????????????????????????????????????????????????? | | ?????????????????????????????????????????????????? | | ?????????????????????????????????????????????????? | | ????????????????????????? ??????????????????????? | | ????????????????????????? ??????????????????????? | | ????????????????????????? ??????????????????????? | | ????????????????????????? %??????????????????????? | | ????????????????????????? ??????????????????????? | | ????????????????????????? ????????????????? ? | | ????????????????????????? ???????????????? | | ????????????????????????# ??????????????? | | ????????????????????????+ ???????????????? T | | ????????????????????????# ???????????????? | | ????????????????????????#g ????????????????? ? | | ????????????????????????#g#????????????????? ? | | ????????????????????????#g#???????????#####?# #? | | ????????????????????????#s#???????????# #?# #? | | ????????????????????????#=#???????????# #?# #? | | ???????######+###########@#???????????# #?# #? | | ???? [[==%g=%#???????????# #?# #? | | ?????????# %#######???######### #?#% %#? | | ?????????# """ #?????????# / !## ### ## | | ?????????# """ #?????????# [ #? ## [# | | ?????????# """ #?????????# ####+## = | | ???????????## """ ########### !! # == | | ????????????# ## = # !! # ##### | | ????????????# ## # + #???# # | | ????????????# ## #+###### #???####### | | ????????????+ ## # #### #?????????? | | ????????????# ##### """ + #?????????? | | ???########## #???# """"" # ######?????????# | | ???# #???# """"" # #??????????????# | | ???+ #???# """"" # #??????????????# | | ???# #???# """ # #??????????????# | | ???########### #???########## #??????????????# | | ????????????## ##????#! # #??????????????# | | ????????????# #????# # #?????????????## | | ????????????# ###### # #?????????????#" | | ????????????+ T ## / + +?????????????## | | ????????????# ### ## ! # #??????????###?# | | ????????????# #?# ## # #??#######?# ### | | ????????????### ###?# ######### #### ! ####### | | ??????????????# #???#!#???????# | +----------------------------------------------------+ Best States ------------- Heat Dissipation 31 Energy Generation 15 Energy Capacity 280 Matter Stores 300 Matter Capacity 300 Sight Range 16 Terrain Scan Density 10 Armor Coverage 150 Resistance: TH 10 Evasion (%) 55 Targeting Accuracy 6 Kinecelleration 30 Item Schematics ----------------- None Robot Schematics ------------------ None Fabricated ------------ Nothing Repaired ---------- Nothing Alien Tech Used ----------------- None Achievements -------------- None Challenges ------------ None Game ------ Seed PrecisionBiocellRecalibrator Manual? 0 Play Time 00:15:32 Cumulative 96.3 hours Start 2025.08.19 @ 20:22:27 End 2025.08.19 @ 20:31:37 Sessions 1 Manual Loads 0 Difficulty Rogue Special Mode None Game No. 373 Rogue 373 Adventurer 0 Explorer 0 Win Type - Total 0 Types 0/0/0/0/0/0/0/0/0/0 Lore% 43 Gallery% 40 Achievement% 30 Wizard Run 0 Options --------- Layout 2 ASCII 0 Keyboard 0 Movement Mouse Keybinds 0 Fullscreen 2 Font 24/Smallcaps Map View 50x44 Zoom Use 0% Tactical HUD 0 Map Filters NONE Filters NONE Steam 1 RUN: 94fa852c-9001-4de8-97bf-9a60f677f30b